bitfinex-derivatives/quotes_SOLF0:USTF0_20240829
["timestamp","ask_amount","ask_price","bid_price","bid_amount"]
[1724891698707,3.52186126,143.9,143.81,2.6528]
[1724891698708,0.04796126,143.9,143.81,2.6528]
[1724891699012,31.46,143.92,143.82,2.22361281]
[1724891699313,0.05016311,143.87,143.83,2.22361281]
[1724891699612,3.52466311,143.87,143.84,5.69861281]
[1724891699806,3.52466311,143.87,143.85,2.22361281]
[1724891700001,3.4747,143.86,143.85,2.22361281]
[1724891700208,0.05016311,143.87,143.84,2.22361281]
[1724891700410,0.05016311,143.87,143.85,26.68]
[1724891700616,0.05016311,143.87,143.86,5.69831281]
[1724891701510,0.05016311,143.87,143.86,2.22361281]
[1724891701707,0.05016311,143.87,143.82,2.22400134]
[1724891702010,0.05016311,143.87,143.83,2.22400134]
[1724891702212,0.05016311,143.87,143.84,2.22400134]
[1724891702408,0.05016311,143.87,143.82,2.22400134]
[1724891702605,0.05016311,143.87,143.83,2.22400134]
[1724891702802,0.05016311,143.87,143.82,2.22400134]
[1724891703002,0.05016311,143.87,143.83,5.69930134]
[1724891703201,0.05016311,143.87,143.83,26.68]
[1724891703411,0.05016311,143.87,143.84,2.22400134]
[1724891703617,3.52466311,143.87,143.84,5.69910134]
[1724891704413,3.4747,143.86,143.84,2.22400134]
[1724891704614,3.4747,143.86,143.83,3.4753]
[1724891704910,3.4751,143.85,143.82,2.22404181]
[1724891705117,3.4751,143.85,143.81,2.6528]
[1724891705118,3.4751,143.85,143.81,31.55684181]
[1724891705312,3.4751,143.85,143.82,2.22404181]
[1724891706424,3.4751,143.85,143.82,5.69964181]
[1724891706616,3.4747,143.86,143.82,2.22404181]
[1724891706923,0.05016311,143.87,143.83,26.68]
[1724891707116,0.05016311,143.87,143.84,2.2239533]
[1724891707526,0.05016311,143.87,143.85,26.68]
[1724891708024,30.2270873,143.94,143.86,2.22354035]
[1724891708025,3.5470873,143.94,143.86,2.22354035]
[1724891708231,7.3549,143.95,143.88,26.68]
[1724891708427,7.3549,143.95,143.87,3.4743]
[1724891709134,3.4737,143.9,143.87,3.4743]
[1724891709432,3.4737,143.9,143.87,3.52225825]
[1724891713732,0.04456996,143.92,143.87,0.04795825]
[1724891713931,0.04456996,143.92,143.88,26.68]
[1724891714133,0.04456996,143.92,143.87,2.61455825]
[1724891715228,3.4737,143.9,143.87,6.08885825]
[1724891715436,0.04456996,143.92,143.87,6.08885825]
[1724891715437,0.04456996,143.92,143.87,0.04795825]
[1724891715938,26.72456996,143.92,143.87,0.04795825]
[1724891716125,10.67,143.9,143.87,0.04795825]
[1724891716325,10.71456996,143.92,143.87,0.04795825]
[1724891716732,3.474,143.89,143.87,0.04795825]
[1724891717528,10.71456996,143.92,143.87,0.04795825]
[1724891717933,10.67,143.9,143.87,0.04795825]
[1724891718136,10.67,143.89,143.87,0.04795825]
[1724891719328,3.4742,143.88,143.87,0.04795825]
[1724891723539,14.1442,143.88,143.87,0.04795825]
[1724891725346,10.67,143.88,143.79,14.6214]
[1724891725643,10.67,143.85,143.79,3.9514]
[1724891725837,10.67,143.84,143.79,3.9514]
[1724891726044,3.4758,143.82,143.79,7.4277]
[1724891726444,3.52509354,143.82,143.79,7.4277]
[1724891727945,3.52509354,143.82,143.77,18.86539243]
[1724891727946,10.67,143.81,143.77,3.4768]
[1724891728145,0.04929354,143.82,143.78,1.39050329]
[1724891728345,0.04929354,143.82,143.77,10.67]
[1724891728742,0.04929354,143.82,143.76,4.78]
[1724891728946,3.476,143.81,143.78,3.4765]
[1724891729543,0.04929354,143.82,143.77,10.67]
[1724891729939,0.04929354,143.82,143.78,1.39045855]
[1724891730152,3.4764,143.79,143.78,1.39050244]
[1724891730453,3.4764,143.79,143.78,1.39050278]
[1724891730752,3.4764,143.79,143.76,7.09230724]
[1724891730945,3.52985061,143.79,143.77,1.39050278]
[1724891731244,0.05345061,143.79,143.77,4.86720278]
[1724891731450,0.05345061,143.79,143.75,2.5975]
[1724891731451,0.05345061,143.79,143.78,10.67]
[1724891731641,14.12084633,143.85,143.78,10.67]
[1724891731950,3.4759,143.81,143.78,14.1465]
[1724891732149,14.12084633,143.85,143.78,10.67]
[1724891732346,3.45084633,143.85,143.79,10.67]
[1724891732549,349.67,143.86,143.81,10.72105295]
[1724891732550,0.05129499,143.83,143.81,10.72105295]
[1724891732846,339.0,143.86,143.82,10.67]
[1724891733048,339.0,143.86,143.82,12.0124]
[1724891733645,12.0055,143.9,143.82,12.0124]
[1724891733854,3.4748,143.86,143.85,0.05312299]
[1724891738951,3.52218166,143.87,143.85,0.05312299]
[1724891740258,4.70123797,143.94,143.86,10.67]
[1724891740453,4.70123797,143.94,143.9,10.67]
[1724891740454,3.44523797,143.94,143.9,10.67]
[1724891740656,10.67,143.98,143.92,3.473]
[1724891740856,3.4727,143.95,143.91,10.67]
[1724891741455,3.51842335,143.94,143.92,0.05265787]
[1724891741658,3.52024549,143.94,143.92,0.05265787]
[1724891742258,0.04744549,143.94,143.92,0.05265787]
[1724891742955,0.04744549,143.94,143.92,3.52585787]
[1724891743351,0.04744549,143.94,143.92,0.05265787]
[1724891746159,3.52024549,143.94,143.92,0.05265787]
[1724891746653,3.473,143.93,143.92,0.05265787]
[1724891746857,14.143,143.93,143.92,0.05265787]
[1724891748164,10.67,143.93,143.85,2.22358915]
[1724891748364,10.67,143.89,143.83,1.3614]
[1724891748560,10.67,143.9,143.83,3.58498915]
[1724891748764,3.4744,143.88,143.85,3.4748]
[1724891749167,3.52049556,143.88,143.85,3.52155674]
[1724891749956,3.4747,143.86,143.85,0.04675674]
[1724891750163,7.02079722,143.86,143.85,0.04675674]
[1724891750757,3.4747,143.86,143.85,0.04675674]
[1724891753069,6.98449213,143.86,143.85,0.04675674]
[1724891753660,33.67449213,143.86,143.85,0.04675674]
[1724891753862,3.4754,143.83,143.79,3.4763]
[1724891754161,30.19979213,143.86,143.79,2.2243813]
[1724891754762,30.19979213,143.86,143.8,3.476]
[1724891754966,0.04595419,143.84,143.81,0.04397328]
[1724891755469,3.4754,143.83,143.81,0.04397328]
[1724891755871,0.04595419,143.84,143.81,0.04397328]
[1724891756071,3.52125419,143.84,143.81,0.04397328]
[1724891757071,3.4756,143.83,143.81,0.04397328]
[1724891759878,0.04595419,143.84,143.81,3.51977328]
[1724891760373,0.04595419,143.84,143.81,0.04397328]
[1724891760871,0.04595419,143.84,143.82,3.4756]
[1724891761071,0.04595419,143.84,143.81,0.04397328]
[1724891761575,3.52125419,143.84,143.81,3.51967328]
[1724891762389,3.52125419,143.84,143.82,3.4756]
[1724891764187,3.4755,143.83,143.81,0.04397328]
[1724891765183,0.04595419,143.84,143.81,0.04397328]
[1724891765184,3.4756,143.82,143.81,0.04397328]
[1724891768483,0.04595419,143.84,143.81,0.04397328]
[1724891768786,0.04595419,143.84,143.81,26.73397328]
[1724891768993,0.04595419,143.84,143.82,3.4755]
[1724891769482,0.04595419,143.84,143.83,3.4754]
[1724891770087,0.04595419,143.84,143.83,5.69957544]
[1724891770290,0.04595419,143.84,143.83,5.69964403]
[1724891771887,0.04595419,143.84,143.83,2.22417385]
[1724891772096,0.04595419,143.84,143.82,3.4756]
[1724891772290,0.04595419,143.84,143.81,2.26814713]
[1724891773295,0.04595419,143.84,143.83,3.4754]
[1724891773797,0.04595419,143.84,143.81,0.04397328]
[1724891774092,0.04595419,143.84,143.82,3.4755]
[1724891774791,0.04595419,143.84,143.83,3.4754]
[1724891775193,0.04595419,143.84,143.81,2.26833877]
[1724891775885,3.4754,143.83,143.81,2.26833877]
[1724891776084,0.04595419,143.84,143.81,0.04397328]
[1724891776490,3.4756,143.82,143.81,0.04397328]
[1724891776898,3.4755,143.83,143.81,0.04397328]
[1724891777492,0.04595419,143.84,143.81,0.04397328]
[1724891777795,3.4754,143.83,143.81,0.04397328]
[1724891777995,0.04595419,143.84,143.82,3.4756]
[1724891778497,0.04595419,143.84,143.81,3.51977328]
[1724891778799,3.52125419,143.84,143.81,3.51977328]
[1724891779098,0.04595419,143.84,143.82,26.69]
[1724891779509,339.0,143.91,143.83,26.69]
[1724891779801,6.1411,143.92,143.83,26.69]
[1724891779992,3.4741,143.89,143.85,3.4747]
[1724891780192,26.69,143.93,143.85,3.4747]
[1724891780503,3.474,143.89,143.88,0.04407714]
[1724891785702,0.04716035,143.9,143.88,0.04407714]
[1724891786497,0.04716035,143.9,143.89,26.69]
[1724891786703,26.69,143.99,143.89,28.9134819]
[1724891787004,339.0,144.0,143.91,26.69]
[1724891787005,3.4723,143.96,143.91,26.69]
[1724891787196,1.348,144.0,143.91,26.69]
[1724891787600,3.4722,143.97,143.93,3.4728]
[1724891787800,0.04533631,143.96,143.94,0.0449096]
[1724891788007,3.51773631,143.96,143.94,0.0449096]
[1724891788208,0.04533631,143.96,143.94,0.0449096]
[1724891789604,3.4725,143.95,143.94,0.0449096]
[1724891792309,3.4725,143.95,143.88,1.2737]
[1724891792310,3.4734,143.92,143.87,4.78]
[1724891792603,3.4734,143.92,143.88,3.474]
[1724891793212,0.04609264,143.91,143.89,3.52256069]
[1724891793599,0.04609264,143.91,143.89,0.04856069]
[1724891793907,0.04609264,143.91,143.9,3.4737]
[1724891796906,0.04609264,143.91,143.89,3.52246069]
[1724891797111,0.04609264,143.91,143.89,0.04856069]
[1724891797706,0.04609264,143.91,143.9,3.4737]
[1724891798611,0.04609264,143.91,143.89,0.04856069]
[1724891799808,3.4737,143.9,143.89,0.04856069]
[1724891800417,26.69,143.9,143.83,2.22407016]
[1724891800711,26.69,143.9,143.82,4.78]
[1724891801306,3.4748,143.86,143.85,0.04423574]
[1724891803815,6.87025536,143.86,143.85,0.04423574]
[1724891804514,6.87025536,143.86,143.81,7.00436573]
[1724891804515,3.4758,143.82,143.81,2.22436573]
[1724891804715,26.69,143.86,143.79,8.3948465]
[1724891805016,339.0,143.89,143.81,26.69]
[1724891805214,3.4751,143.85,143.81,26.69]
[1724891805614,0.04918369,143.84,143.81,30.1657]
[1724891805816,3.52438369,143.84,143.81,30.1657]
[1724891806712,3.52438369,143.84,143.81,3.4757]
[1724891806918,3.4754,143.83,143.8,30.166]
[1724891807320,0.04918369,143.84,143.8,26.69]
[1724891808013,0.04918369,143.84,143.82,26.69]
[1724891809316,0.04918369,143.84,143.77,4.78]
[1724891809518,0.04918369,143.84,143.79,26.69]
[1724891809723,3.52448369,143.84,143.81,3.4757]
[1724891811915,0.04918369,143.84,143.81,26.69]
[1724891812425,0.04918369,143.84,143.82,3.4754]
[1724891813018,0.04918369,143.84,143.83,3.4754]
[1724891816229,366.9603,143.92,143.85,3.4749]
[1724891816424,32.7403,143.92,143.85,3.4749]
[1724891816918,26.69,143.91,143.83,2.22407632]
[1724891817124,26.69,143.91,143.82,8.36847632]
[1724891817420,3.4749,143.86,143.85,0.04911794]
[1724891822829,6.95018332,143.86,143.85,0.04911794]
[1724891823034,3.4749,143.86,143.85,0.04911794]
[1724891823733,6.99605706,143.86,143.85,0.04911794]
[1724891823934,3.4749,143.86,143.85,0.04911794]
[1724891824834,0.04614121,143.88,143.85,0.04911794]
[1724891825535,0.04614121,143.88,143.85,3.52391794]
[1724891827432,3.52034121,143.88,143.85,3.52391794]
[1724891828033,0.04614121,143.88,143.85,3.52391794]
[1724891828238,0.04614121,143.88,143.86,3.4746]
[1724891829136,0.04614121,143.88,143.85,0.04911794]
[1724891829734,0.04614121,143.88,143.85,26.73911794]
[1724891829944,28.009,143.97,143.87,26.69]
[1724891830241,28.009,143.97,143.91,3.4733]
[1724891830242,3.4727,143.95,143.91,3.4733]
[1724891830540,34.0455,143.99,143.91,26.69]
[1724891830835,3.4723,143.96,143.92,3.4731]
[1724891831031,0.04799383,143.95,143.93,0.04432025]
[1724891831438,3.52049383,143.95,143.93,0.04432025]
[1724891831834,0.04799383,143.95,143.93,0.04432025]
[1724891832735,0.04799383,143.95,143.93,3.51712025]
[1724891832938,0.04799383,143.95,143.93,0.04432025]
[1724891833336,0.04799383,143.95,143.93,3.51722025]
[1724891833841,0.04799383,143.95,143.93,0.04432025]
[1724891834838,0.04799383,143.95,143.94,3.4728]
[1724891835138,31.47,144.06,143.94,26.69]
[1724891835338,34.85949979,144.06,143.97,26.69]
[1724891835937,0.05278147,144.03,144.0,0.05243355]
[1724891836328,0.05278147,144.03,144.01,26.69]
[1724891836528,0.05278147,144.03,144.0,8.30363355]
[1724891837543,0.05278147,144.03,144.0,4.83243355]
[1724891837742,3.471,144.02,144.0,4.83243355]
[1724891837944,0.05278147,144.03,144.0,0.05243355]
[1724891838435,3.4708,144.02,144.0,0.05243355]
[1724891838643,0.05278147,144.03,144.0,0.05243355]
[1724891839344,3.4711,144.01,144.0,0.05243355]
[1724891841742,26.69,144.02,143.95,4.78]
[1724891842046,26.69,144.0,143.92,4.78]
[1724891842243,3.54411946,143.99,143.92,4.78]
[1724891842847,0.04910842,143.97,143.94,0.05295395]
[1724891843343,3.4723,143.96,143.94,0.05295395]
[1724891843643,0.04910842,143.97,143.94,0.05295395]
[1724891844150,0.04910842,143.97,143.94,3.52565395]
[1724891845547,3.4725,143.96,143.94,0.05295395]
[1724891846343,3.4725,143.95,143.94,0.05295395]
[1724891847245,3.4724,143.96,143.94,0.05295395]
[1724891848050,3.4725,143.95,143.94,0.05295395]
[1724891853052,3.4724,143.96,143.94,0.05295395]
[1724891853252,0.04910842,143.97,143.94,0.05295395]
[1724891853552,0.04910842,143.97,143.94,3.52555395]
[1724891854154,0.04910842,143.97,143.95,3.4724]
[1724891854357,0.04910842,143.97,143.95,26.69]
[1724891854857,342.4711,144.01,143.95,31.45]
[1724891855051,342.4711,144.01,143.98,26.69]
[1724891855353,3.4711,144.01,143.97,30.1619]
[1724891855554,3.4711,144.01,143.97,26.69]
[1724891855768,6.0503,144.05,143.99,3.4715]
[1724891855769,3.4709,144.02,143.99,3.4715]
[1724891855954,0.04561354,144.0,143.98,0.04884501]
[1724891856752,3.51711354,144.0,143.98,0.04884501]
[1724891856958,0.04561354,144.0,143.98,0.04884501]
[1724891857853,3.4715,143.99,143.98,0.04884501]
[1724891858459,0.04561354,144.0,143.98,0.04884501]
[1724891860465,3.51711354,144.0,143.98,0.04884501]
[1724891861159,0.04561354,144.0,143.98,0.04884501]
[1724891862068,0.04561354,144.0,143.98,3.52064501]
[1724891863373,0.04561354,144.0,143.99,3.4715]
[1724891866277,3.4707,144.03,144.0,3.4712]
[1724891866477,3.4707,144.03,144.01,26.69]
[1724891867375,3.51454867,144.03,144.01,26.74210812]
[1724891868473,0.04384867,144.03,144.01,30.21310812]
[1724891870180,3.51444867,144.03,144.01,26.74210812]
[1724891871184,0.04384867,144.03,144.01,30.21310812]
[1724891871376,0.04384867,144.03,144.01,26.74210812]
[1724891871586,0.04384867,144.03,144.02,26.69]
[1724891871883,0.04384867,144.03,144.02,30.1608]
[1724891872079,3.52856294,144.08,144.02,10.66]
[1724891872285,10.66,144.11,144.05,10.66]
[1724891872477,1.27599379,144.1,144.05,10.66]
[1724891873283,0.04574621,144.09,144.06,0.05163686]
[1724891873483,1.32174,144.09,144.06,0.05163686]
[1724891874184,0.04574621,144.09,144.06,0.05163686]
[1724891874478,3.4696,144.07,144.06,0.05163686]
[1724891876684,3.4695,144.08,144.06,0.05163686]
[1724891877183,0.04574621,144.09,144.06,0.05163686]
[1724891878287,3.4696,144.07,144.06,0.05163686]
[1724891883793,4.74560526,144.07,144.06,0.05163686]
[1724891884090,4.74564704,144.07,144.06,0.05163686]
[1724891884789,31.34138863,144.07,143.99,3.4714]
[1724891884981,1.3123,144.06,143.99,3.4714]
[1724891885188,3.4706,144.04,143.99,3.4714]
[1724891885486,3.4706,144.04,143.98,31.4]
[1724891885487,1.3123,144.06,144.0,3.4713]
[1724891885690,0.04850752,144.04,144.02,0.04780611]
[1724891886594,3.4706,144.03,144.02,0.04780611]
[1724891887089,3.4715,144.0,143.96,3.4722]
[1724891887993,0.04704298,143.99,143.97,0.04760096]
[1724891889392,3.4718,143.98,143.97,0.04760096]
[1724891889899,3.51874298,143.99,143.97,0.04760096]
[1724891892185,3.4718,143.98,143.97,0.04760096]
[1724891897105,0.04704298,143.99,143.97,0.04760096]
[1724891897292,0.04704298,143.99,143.97,10.71760096]
[1724891897996,0.04704298,143.99,143.98,3.4718]
[1724891898196,342.4707,144.03,144.01,10.67]
[1724891899100,342.4707,144.03,144.01,10.71507348]
[1724891899302,342.52319717,144.03,144.01,10.71507348]
[1724891900101,3.52319717,144.03,144.01,10.71507348]
[1724891901100,0.05249717,144.03,144.01,10.71507348]
[1724891902102,0.05249717,144.03,144.02,10.67]
[1724891903006,0.05249717,144.03,144.02,14.1408]
[1724891903205,0.05249717,144.03,144.02,10.67]
[1724891905405,0.05249717,144.03,144.02,14.1408]
[1724891906101,0.05249717,144.03,144.01,10.71507348]
[1724891908509,0.05249717,144.03,144.02,10.67]
[1724891910513,0.05249717,144.03,144.01,10.71507348]
[1724891912513,0.05249717,144.03,144.02,10.67]
[1724891912711,339.0,144.1,144.02,10.67]
[1724891912912,1.27598277,144.09,144.06,10.67]
[1724891913108,4.74548277,144.08,144.06,10.67]
[1724891913306,3.4695,144.08,144.06,10.67]
[1724891913817,3.51439242,144.08,144.06,10.72289601]
[1724891915615,0.04489242,144.08,144.06,10.72289601]
[1724891919815,0.04489242,144.08,144.07,3.4696]
[1724891920615,0.04489242,144.08,144.06,14.19269601]
[1724891920917,0.04489242,144.08,144.06,0.05289601]
[1724891921119,3.4696,144.07,144.06,0.05289601]
[1724891921622,0.04489242,144.08,144.06,0.05289601]
[1724891922216,3.51439242,144.08,144.06,0.05289601]
[1724891922413,0.04489242,144.08,144.06,0.05289601]
[1724891923527,0.04489242,144.08,144.07,10.67]
[1724891925325,0.04489242,144.08,144.07,14.1396]
[1724891928320,3.4689,144.1,144.07,14.1396]
[1724891928526,3.4689,144.1,144.09,10.67]
[1724891930231,3.51289396,144.11,144.09,10.67]
[1724891934234,0.04409396,144.11,144.09,14.139]
[1724891934438,0.04409396,144.11,144.09,10.67]
[1724891935435,3.51279396,144.11,144.09,10.67]
[1724891935839,3.4689,144.1,144.09,10.67]
[1724891939541,0.04409396,144.11,144.06,0.05289601]
[1724891939747,0.04409396,144.11,144.07,10.67]
[1724891940547,3.4693,144.09,144.07,10.67]
[1724891942642,3.469,144.1,144.08,10.67]
[1724891943147,0.04409396,144.11,144.08,10.67]
[1724891943454,3.51289396,144.11,144.08,10.67]
[1724891943945,0.04409396,144.11,144.1,10.67]
[1724891944553,3.4677,144.15,144.11,3.4685]
[1724891944747,3.4677,144.15,144.13,10.67]
[1724891945149,3.4676,144.16,144.13,10.67]
[1724891945544,0.0443536,144.16,144.13,10.72144147]
[1724891946546,3.4677,144.15,144.13,10.72144147]
[1724891946951,3.5118536,144.16,144.13,10.72144147]
[1724891950162,3.4677,144.15,144.13,10.72144147]
[1724891950362,3.4677,144.15,144.13,0.05144147]
[1724891952769,3.5120536,144.16,144.13,0.05144147]
[1724891954070,0.0443536,144.16,144.13,14.18964147]
[1724891956066,3.5118536,144.16,144.13,14.18964147]
[1724891956465,0.0443536,144.16,144.13,14.18964147]
[1724891956665,3.5118536,144.16,144.13,14.18964147]
[1724891957469,0.0443536,144.16,144.13,14.18964147]
[1724891960461,0.0443536,144.16,144.13,10.72144147]
[1724891961069,3.5118536,144.16,144.13,10.72144147]
[1724891962766,3.4679,144.14,144.13,0.05144147]
[1724891963168,0.0443536,144.16,144.13,0.05144147]
[1724891963870,3.4678,144.15,144.13,0.05144147]
[1724891965774,3.4679,144.14,144.13,0.05144147]
[1724891967168,3.4678,144.15,144.13,0.05144147]
[1724891969172,3.5119536,144.16,144.13,0.05144147]
[1724891969373,0.0443536,144.16,144.14,10.67]
[1724891969573,0.0443536,144.16,144.15,10.67]
[1724891972674,10.67,144.27,144.15,10.67]
[1724891972882,3.4661,144.22,144.2,10.67]
[1724891973680,3.51542062,144.22,144.2,10.71608471]
[1724891974084,3.51542062,144.22,144.2,0.04608471]
[1724891974983,3.51542062,144.22,144.21,10.67]
[1724891975684,0.04932062,144.22,144.21,10.67]
[1724891976474,1.27435524,144.26,144.21,10.67]
[1724891976475,3.4653,144.25,144.21,10.67]
[1724891976680,3.4653,144.25,144.2,0.04608471]
[1724891976681,1.27435524,144.26,144.24,10.67]
[1724891976881,339.0,144.27,144.24,10.67]
[1724891977181,4.73953699,144.26,144.24,10.67]
[1724891977385,3.4652,144.26,144.24,10.67]
[1724891977589,3.51441248,144.26,144.24,10.71817589]
[1724891978385,0.04921248,144.26,144.25,10.67]
[1724891978688,1.27421617,144.28,144.25,10.67]
[1724891978987,3.4643,144.29,144.27,10.67]
[1724891979386,1.27415954,144.28,144.27,10.67]
[1724891979581,3.4643,144.29,144.27,10.67]
[1724891979784,3.51391877,144.29,144.27,10.67]
[1724891980182,0.04961877,144.29,144.27,10.67]
[1724891980790,0.04961877,144.29,144.26,10.72194872]
[1724891981687,0.04961877,144.29,144.28,10.67]
[1724891984388,0.04961877,144.29,144.28,14.1346]
[1724891985091,0.04961877,144.29,144.28,10.67]
[1724891987190,0.04961877,144.29,144.28,14.1346]
[1724891987494,0.04961877,144.29,144.28,10.67]
[1724891988395,0.04961877,144.29,144.28,14.1346]
[1724891989294,0.04961877,144.29,144.28,10.67]
[1724891993795,0.04961877,144.29,144.26,0.05194872]
[1724891994097,0.04961877,144.29,144.27,10.67]
[1724891994295,3.51411877,144.29,144.27,10.67]
[1724891995398,3.51411877,144.29,144.28,10.67]
[1724891996899,0.04961877,144.29,144.28,10.67]
[1724891997701,3.51391877,144.29,144.28,10.67]
[1724891998490,3.51391877,144.29,144.27,10.67]
[1724891998696,3.51391877,144.29,144.26,10.72194872]
[1724891999900,3.4646,144.28,144.26,10.72194872]
[1724892000203,10.67,144.28,144.26,0.05194872]
[1724892000399,3.4648,144.27,144.26,0.05194872]
[1724892001404,3.4647,144.28,144.26,0.05194872]
[1724892001906,0.04961877,144.29,144.26,0.05194872]
[1724892002504,0.04961877,144.29,144.27,10.67]
[1724892002911,0.04961877,144.29,144.28,10.67]
[1724892003100,0.04961877,144.29,144.28,14.1346]
[1724892003796,1.27401132,144.32,144.28,10.67]
[1724892003995,3.4632,144.34,144.31,10.67]
[1724892004402,3.4628,144.36,144.33,10.67]
[1724892005010,3.51277557,144.36,144.33,10.71931664]
[1724892005509,3.4629,144.35,144.33,10.71931664]
[1724892005816,3.58035258,144.36,144.33,0.04931664]
[1724892007213,3.4629,144.35,144.33,0.04931664]
[1724892009509,3.51267557,144.36,144.33,10.71931664]
[1724892010603,0.04997557,144.36,144.33,10.71931664]
[1724892010809,0.04997557,144.36,144.35,10.67]
[1724892014811,0.04997557,144.36,144.33,0.04931664]
[1724892015110,10.67,144.35,144.33,0.04931664]
[1724892015306,3.45746272,144.35,144.33,0.04931664]
[1724892015508,0.04997557,144.36,144.33,0.04931664]
[1724892015808,3.4629,144.35,144.33,10.71931664]
[1724892016006,0.04997557,144.36,144.33,0.04931664]
[1724892016202,3.51782834,144.36,144.33,0.04931664]
[1724892016403,3.4629,144.35,144.33,0.04931664]
[1724892016607,3.45063934,144.36,144.33,0.04931664]
[1724892016814,0.04997557,144.36,144.33,10.71931664]
[1724892017009,3.51267557,144.36,144.33,10.71931664]
[1724892019117,0.04997557,144.36,144.33,10.71931664]
[1724892019612,3.4631,144.34,144.33,0.04931664]
[1724892024016,6.94082668,144.35,144.33,0.04931664]
[1724892024217,3.47792668,144.35,144.33,0.04931664]
[1724892024615,0.04997557,144.36,144.33,0.04931664]
[1724892025318,3.51267557,144.36,144.33,0.04931664]
[1724892025615,0.04997557,144.36,144.34,10.67]
[1724892026514,6.91460338,144.36,144.33,0.04931664]
[1724892026713,3.45180338,144.36,144.33,0.04931664]
[1724892027116,3.463,144.35,144.33,0.04931664]
[1724892028328,0.04997557,144.36,144.33,0.04931664]
[1724892029822,0.04997557,144.36,144.34,10.67]
[1724892030723,0.04997557,144.36,144.33,10.71931664]
[1724892031223,3.51267557,144.36,144.33,10.71931664]
[1724892031516,0.04997557,144.36,144.33,10.71931664]
[1724892033118,0.04997557,144.36,144.34,10.67]
[1724892034919,3.51267557,144.36,144.33,10.71931664]
[1724892035112,0.04997557,144.36,144.33,10.71931664]
[1724892035725,0.04997557,144.36,144.34,10.67]
[1724892036431,0.04997557,144.36,144.33,10.71931664]
[1724892040524,0.04997557,144.36,144.34,10.67]
[1724892041031,0.04997557,144.36,144.35,3.4629]
[1724892041231,0.04997557,144.36,144.34,10.67]
[1724892041730,0.04997557,144.36,144.34,14.133]
[1724892043226,0.04997557,144.36,144.35,3.4629]
[1724892044228,339.0,144.43,144.34,10.67]
[1724892044429,566.0,144.61,144.42,10.67]
[1724892044430,342.889,144.49,144.42,10.67]
[1724892044733,1.27294194,144.48,144.42,10.67]
[1724892044929,4.73294194,144.48,144.43,10.67]
[1724892045131,4.73294194,144.48,144.45,10.67]
[1724892045132,3.46,144.48,144.45,10.67]
[1724892045332,3.51278192,144.48,144.45,10.71558744]
[1724892045729,3.51278192,144.48,144.45,0.04558744]
[1724892046130,3.51278192,144.48,144.45,3.50588744]
[1724892046131,0.05278192,144.48,144.45,3.50588744]
[1724892046330,0.05278192,144.48,144.45,0.04558744]
[1724892046835,0.05278192,144.48,144.45,4.76558744]
[1724892047537,0.05278192,144.48,144.45,8.22588744]
[1724892047845,0.05278192,144.48,144.46,26.57]
[1724892048543,0.05278192,144.48,144.47,3.46]
[1724892048929,0.05278192,144.48,144.46,26.57]
[1724892049328,0.05278192,144.48,144.46,30.0302]
[1724892049838,341.5954,144.56,144.47,3.46]
[1724892050038,340.3059,144.59,144.49,26.57]
[1724892050237,1.27175572,144.58,144.53,26.57]
[1724892050545,4.72915572,144.58,144.53,26.57]
[1724892050735,4.89252103,144.61,144.53,26.57]
[1724892050935,0.04420957,144.58,144.56,0.04640971]
[1724892054148,3.4576,144.57,144.56,0.04640971]
[1724892054949,3.4584,144.54,144.5,4.72]
[1724892055849,3.4581,144.55,144.5,4.72]
[1724892056047,0.0512953,144.54,144.51,0.04902443]
[1724892056253,0.05218516,144.54,144.51,3.5081678]
[1724892056453,0.05218516,144.54,144.51,0.0491678]
[1724892058154,0.05218516,144.54,144.51,4.7691678]
[1724892058655,0.05218516,144.54,144.51,0.0491678]
[1724892059247,3.4587,144.53,144.51,0.0491678]
[1724892059446,0.05218516,144.54,144.51,0.0491678]
[1724892059652,3.4588,144.52,144.51,0.0491678]
[1724892061359,4.73057321,144.52,144.51,0.0491678]
[1724892062459,4.73068197,144.52,144.51,0.0491678]
[1724892063156,1.27188197,144.52,144.51,0.0491678]
[1724892063353,0.05218516,144.54,144.51,0.0491678]
[1724892063547,3.4586,144.53,144.51,0.0491678]